[Event "Titled Tuesday Blitz June 29 2021"]
[White "TeukkaSalama"]
[Black "rychessmaster1"]
[WhiteElo "2330"]
[BlackElo "2518"]
[Result "1/2-1/2"]
[Round "11"]
[TimeControl "180+1"]
[Date "2021.06.29"]
[WhiteClock "0:00:15"]
[BlackClock "0:00:20"]

1. d4 {[%clk 0:03:00]}  Nf6 {[%clk 0:02:59]} 2. Bf4 {[%clk 0:03:00]}  g6 {[%clk 0:02:59]} 3. e3 {[%clk 0:03:01]}  Bg7 {[%clk 0:02:59]} 4. Nf3 {[%clk 0:03:01]}  d6 {[%clk 0:02:59]} 5. h3 {[%clk 0:03:01]}  O-O {[%clk 0:03:00]} 6. Be2 {[%clk 0:03:02]}  Nbd7 {[%clk 0:03:00]} 7. O-O {[%clk 0:03:03]}  Qe8 {[%clk 0:03:00]} 8. c4 {[%clk 0:03:02]}  e5 {[%clk 0:03:00]} 9. Bh2 {[%clk 0:03:03]}  a5 {[%clk 0:02:56]} 10. Nc3 {[%clk 0:03:02]}  c6 {[%clk 0:02:45]} 11. Qc2 {[%clk 0:03:00]}  Qe7 {[%clk 0:02:41]} 12. Rfd1 {[%clk 0:02:57]}  Re8 {[%clk 0:02:30]} 13. a3 {[%clk 0:02:55]}  exd4 {[%clk 0:02:16]} 14. Nxd4 {[%clk 0:02:50]}  Ne5 {[%clk 0:02:11]} 15. Rd2 {[%clk 0:02:37]}  Nfd7 {[%clk 0:01:55]} 16. Rad1 {[%clk 0:02:35]}  Nb6 {[%clk 0:01:52]} 17. b3 {[%clk 0:02:27]}  h5 {[%clk 0:01:23]} 18. Nf3 {[%clk 0:02:17]}  d5 {[%clk 0:01:12]} 19. cxd5 {[%clk 0:02:10]}  Nxd5 {[%clk 0:01:12]} 20. Nxd5 {[%clk 0:02:10]}  cxd5 {[%clk 0:01:13]} 21. Nxe5 {[%clk 0:02:05]}  Bxe5 {[%clk 0:01:13]} 22. Bxe5 {[%clk 0:02:05]}  Qxe5 {[%clk 0:01:14]} 23. Rxd5 {[%clk 0:02:05]}  Qe7 {[%clk 0:01:14]} 24. Bb5 {[%clk 0:01:46]}  Rf8 {[%clk 0:01:14]} 25. Bc4 {[%clk 0:01:45]}  Be6 {[%clk 0:01:06]} 26. Re5 {[%clk 0:01:41]}  Rac8 {[%clk 0:00:57]} 27. Qe4 {[%clk 0:01:27]}  Qf6 {[%clk 0:00:58]} 28. Bxe6 {[%clk 0:01:17]}  fxe6 {[%clk 0:00:58]} 29. f4 {[%clk 0:01:14]}  Rc6 {[%clk 0:00:46]} 30. Rd7 {[%clk 0:01:12]}  Rf7 {[%clk 0:00:46]} 31. Qd4 {[%clk 0:00:57]}  h4 {[%clk 0:00:29]} 32. Rd8+ {[%clk 0:00:45]}  Kg7 {[%clk 0:00:27]} 33. Rxa5 {[%clk 0:00:38]}  Qxd4 {[%clk 0:00:28]} 34. Rxd4 {[%clk 0:00:38]}  Rc3 {[%clk 0:00:27]} 35. Re4 {[%clk 0:00:30]}  Rd7 {[%clk 0:00:20]} 36. Rxe6 {[%clk 0:00:25]}  Rc2 {[%clk 0:00:20]} 37. Rg5 {[%clk 0:00:24]}  Rd1+ {[%clk 0:00:18]} 38. Kh2 {[%clk 0:00:25]}  Rcc1 {[%clk 0:00:19]} 39. Rgxg6+ {[%clk 0:00:20]}  Kf7 {[%clk 0:00:19]} 40. Rgf6+ {[%clk 0:00:15]}  Kg7 {[%clk 0:00:19]} 41. Rg6+ {[%clk 0:00:15]}  Kf7 {[%clk 0:00:20]} 42. Rgf6+ {[%clk 0:00:15]}  Kg7 {[%clk 0:00:20]} 43. Rg6+ {[%clk 0:00:15]} 1/2-1/2


[Site "https://www.chess.com"]

[Event "Titled Tuesday Blitz June 29 2021"]
[White "The_filthy"]
[Black "MariamiJaniashvili"]
[WhiteElo "2283"]
[BlackElo "2348"]
[Result "1-0"]
[Round "11"]
[TimeControl "180+1"]
[Date "2021.06.29"]
[WhiteClock "0:00:37"]
[BlackClock "0:00:17"]

1. e4 {[%clk 0:03:00]}  d5 {[%clk 0:02:59]} 2. exd5 {[%clk 0:03:00]}  Qxd5 {[%clk 0:03:00]} 3. Nc3 {[%clk 0:03:01]}  Qa5 {[%clk 0:03:00]} 4. Nf3 {[%clk 0:03:01]}  Nf6 {[%clk 0:03:00]} 5. Be2 {[%clk 0:03:01]}  Bg4 {[%clk 0:03:01]} 6. O-O {[%clk 0:03:01]}  Nc6 {[%clk 0:03:01]} 7. h3 {[%clk 0:03:02]}  Bh5 {[%clk 0:03:01]} 8. d3 {[%clk 0:03:02]}  O-O-O {[%clk 0:03:01]} 9. Bd2 {[%clk 0:03:03]}  e6 {[%clk 0:02:59]} 10. a3 {[%clk 0:03:03]}  Qc5 {[%clk 0:02:56]} 11. b4 {[%clk 0:03:02]}  Qd6 {[%clk 0:02:54]} 12. Nb5 {[%clk 0:02:52]}  Qd7 {[%clk 0:02:53]} 13. a4 {[%clk 0:02:45]}  a6 {[%clk 0:02:42]} 14. Be3 {[%clk 0:02:45]}  Bxb4 {[%clk 0:02:33]} 15. Qb1 {[%clk 0:02:43]}  Ba5 {[%clk 0:02:25]} 16. Qb3 {[%clk 0:02:32]}  Nd5 {[%clk 0:02:17]} 17. Rfb1 {[%clk 0:02:16]}  b6 {[%clk 0:01:42]} 18. Nbd4 {[%clk 0:01:52]}  Nxe3 {[%clk 0:01:29]} 19. fxe3 {[%clk 0:01:45]}  Nxd4 {[%clk 0:01:21]} 20. exd4 {[%clk 0:01:37]}  Bxf3 {[%clk 0:01:12]} 21. Bxf3 {[%clk 0:01:38]}  Qxd4+ {[%clk 0:01:12]} 22. Kh1 {[%clk 0:01:38]}  Kd7 {[%clk 0:01:07]} 23. c3 {[%clk 0:01:34]}  Qxc3 {[%clk 0:01:02]} 24. Qd1 {[%clk 0:01:33]}  Ke7 {[%clk 0:00:58]} 25. Rc1 {[%clk 0:01:31]}  Rxd3 {[%clk 0:00:55]} 26. Qf1 {[%clk 0:01:27]}  Qb3 {[%clk 0:00:25]} 27. Rxc7+ {[%clk 0:01:24]}  Rd7 {[%clk 0:00:26]} 28. Rxd7+ {[%clk 0:01:16]}  Kxd7 {[%clk 0:00:27]} 29. Rd1+ {[%clk 0:01:13]}  Ke7 {[%clk 0:00:27]} 30. Qf2 {[%clk 0:01:01]}  g6 {[%clk 0:00:24]} 31. Qh4+ {[%clk 0:00:57]}  Kf8 {[%clk 0:00:20]} 32. Qf6 {[%clk 0:00:53]}  b5 {[%clk 0:00:19]} 33. Qxh8+ {[%clk 0:00:52]}  Ke7 {[%clk 0:00:19]} 34. axb5 {[%clk 0:00:44]}  axb5 {[%clk 0:00:20]} 35. Qd4 {[%clk 0:00:38]}  Bc3 {[%clk 0:00:17]} 36. Qd8# {[%clk 0:00:37]} 1-0


[Site "https://www.chess.com"]

[Event "Titled Tuesday Blitz June 29 2021"]
[White "WisdomGame"]
[Black "kingofthenil"]
[WhiteElo "2318"]
[BlackElo "2627"]
[Result "0-1"]
[Round "11"]
[TimeControl "180+1"]
[Date "2021.06.29"]
[WhiteClock "0:01:00"]
[BlackClock "0:01:49"]

1. e4 {[%clk 0:02:57]}  Nc6 {[%clk 0:02:55]} 2. d4 {[%clk 0:02:53]}  d5 {[%clk 0:02:55]} 3. e5 {[%clk 0:02:50]}  Bf5 {[%clk 0:02:52]} 4. Nf3 {[%clk 0:02:47]}  e6 {[%clk 0:02:48]} 5. Bb5 {[%clk 0:02:46]}  Ne7 {[%clk 0:02:47]} 6. c3 {[%clk 0:02:46]}  f6 {[%clk 0:02:46]} 7. exf6 {[%clk 0:02:45]}  gxf6 {[%clk 0:02:47]} 8. Nh4 {[%clk 0:02:43]}  Bg6 {[%clk 0:02:46]} 9. Nxg6 {[%clk 0:02:39]}  hxg6 {[%clk 0:02:47]} 10. Qg4 {[%clk 0:02:38]}  Qd7 {[%clk 0:02:45]} 11. Qf3 {[%clk 0:02:26]}  Bg7 {[%clk 0:02:43]} 12. Nd2 {[%clk 0:02:26]}  a6 {[%clk 0:02:42]} 13. Nb3 {[%clk 0:02:26]}  axb5 {[%clk 0:02:42]} 14. Nc5 {[%clk 0:02:23]}  Qc8 {[%clk 0:02:42]} 15. Qe2 {[%clk 0:02:21]}  Kf7 {[%clk 0:02:43]} 16. O-O {[%clk 0:02:19]}  b6 {[%clk 0:02:43]} 17. Nd3 {[%clk 0:02:19]}  e5 {[%clk 0:02:44]} 18. dxe5 {[%clk 0:02:18]}  fxe5 {[%clk 0:02:45]} 19. Bg5 {[%clk 0:02:18]}  Qf5 {[%clk 0:02:41]} 20. f4 {[%clk 0:02:17]}  e4 {[%clk 0:02:41]} 21. Ne5+ {[%clk 0:02:17]}  Kg8 {[%clk 0:02:41]} 22. g4 {[%clk 0:02:14]}  Qe6 {[%clk 0:02:39]} 23. Nxc6 {[%clk 0:02:10]}  Nxc6 {[%clk 0:02:40]} 24. f5 {[%clk 0:02:10]}  gxf5 {[%clk 0:02:41]} 25. gxf5 {[%clk 0:02:10]}  Qe5 {[%clk 0:02:39]} 26. Qg4 {[%clk 0:02:09]}  Kf7 {[%clk 0:02:32]} 27. Rf2 {[%clk 0:02:04]}  Rag8 {[%clk 0:02:29]} 28. h4 {[%clk 0:01:55]}  Bf6 {[%clk 0:02:21]} 29. Rd1 {[%clk 0:01:51]}  Rxh4 {[%clk 0:02:12]} 30. Qxh4 {[%clk 0:01:43]}  Rxg5+ {[%clk 0:02:08]} 31. Kh1 {[%clk 0:01:42]}  Rg1+ {[%clk 0:02:05]} 32. Rxg1 {[%clk 0:01:42]}  Bxh4 {[%clk 0:02:05]} 33. Rh2 {[%clk 0:01:43]}  Bf6 {[%clk 0:01:58]} 34. Rh7+ {[%clk 0:01:41]}  Kf8 {[%clk 0:01:58]} 35. Rh5 {[%clk 0:01:13]}  e3 {[%clk 0:01:53]} 36. c4 {[%clk 0:01:13]}  Qe4+ {[%clk 0:01:52]} 37. Kh2 {[%clk 0:01:12]}  Qf4+ {[%clk 0:01:50]} 38. Rg3 {[%clk 0:01:01]}  Be5 {[%clk 0:01:48]} 39. Rg5 {[%clk 0:01:02]}  Qxg5 {[%clk 0:01:48]} 40. Kg2 {[%clk 0:00:59]}  Qxg3+ {[%clk 0:01:48]} 41. Kf1 {[%clk 0:01:00]}  Qf2# {[%clk 0:01:49]} 0-1


[Site "https://www.chess.com"]

[Event "Titled Tuesday Blitz June 29 2021"]
[White "alejogarcia1999"]
[Black "nikitadovbnya2008"]
[WhiteElo "2481"]
[BlackElo "2328"]
[Result "0-1"]
[Round "11"]
[TimeControl "180+1"]
[Date "2021.06.29"]
[WhiteClock "0:00:49"]
[BlackClock "0:01:20"]

1. Nf3 {[%clk 0:03:00]}  d5 {[%clk 0:02:59]} 2. g3 {[%clk 0:03:01]}  Nf6 {[%clk 0:02:59]} 3. Bg2 {[%clk 0:03:01]}  e6 {[%clk 0:03:00]} 4. O-O {[%clk 0:03:00]}  Be7 {[%clk 0:03:00]} 5. c4 {[%clk 0:03:00]}  O-O {[%clk 0:03:00]} 6. cxd5 {[%clk 0:03:01]}  exd5 {[%clk 0:03:00]} 7. d3 {[%clk 0:03:02]}  c6 {[%clk 0:02:59]} 8. Nc3 {[%clk 0:03:02]}  Re8 {[%clk 0:02:59]} 9. e4 {[%clk 0:03:02]}  dxe4 {[%clk 0:02:57]} 10. dxe4 {[%clk 0:03:03]}  Qxd1 {[%clk 0:02:57]} 11. Rxd1 {[%clk 0:03:04]}  Bg4 {[%clk 0:02:58]} 12. h3 {[%clk 0:03:03]}  Bh5 {[%clk 0:02:55]} 13. Be3 {[%clk 0:02:53]}  Bb4 {[%clk 0:02:54]} 14. g4 {[%clk 0:02:44]}  Bg6 {[%clk 0:02:53]} 15. Nh4 {[%clk 0:02:44]}  Bxc3 {[%clk 0:02:48]} 16. Nxg6 {[%clk 0:02:41]}  Bxb2 {[%clk 0:02:43]} 17. Rab1 {[%clk 0:02:41]}  hxg6 {[%clk 0:02:43]} 18. Rxb2 {[%clk 0:02:41]}  b6 {[%clk 0:02:36]} 19. g5 {[%clk 0:02:08]}  Nfd7 {[%clk 0:02:32]} 20. f4 {[%clk 0:02:08]}  Nf8 {[%clk 0:02:29]} 21. e5 {[%clk 0:02:07]}  Ne6 {[%clk 0:02:27]} 22. Rd6 {[%clk 0:02:06]}  Rd8 {[%clk 0:02:05]} 23. Rbd2 {[%clk 0:01:53]}  Na6 {[%clk 0:01:55]} 24. Bxc6 {[%clk 0:01:50]}  Rab8 {[%clk 0:01:53]} 25. Rd7 {[%clk 0:01:19]}  Rxd7 {[%clk 0:01:38]} 26. Rxd7 {[%clk 0:01:18]}  Nac7 {[%clk 0:01:39]} 27. Bc1 {[%clk 0:01:03]}  Rd8 {[%clk 0:01:37]} 28. Kf2 {[%clk 0:00:55]}  Rxd7 {[%clk 0:01:36]} 29. Bxd7 {[%clk 0:00:56]}  Nc5 {[%clk 0:01:32]} 30. Bc6 {[%clk 0:00:54]}  Nd3+ {[%clk 0:01:32]} 31. Ke3 {[%clk 0:00:53]}  Nxc1 {[%clk 0:01:33]} 32. a4 {[%clk 0:00:53]}  Nb3 {[%clk 0:01:32]} 33. Kd3 {[%clk 0:00:54]}  Nc5+ {[%clk 0:01:31]} 34. Kc4 {[%clk 0:00:54]}  N5e6 {[%clk 0:01:28]} 35. Be4 {[%clk 0:00:47]}  Nxf4 {[%clk 0:01:27]} 36. h4 {[%clk 0:00:48]}  Nfe6 {[%clk 0:01:22]} 37. Kb4 {[%clk 0:00:48]}  Nc5 {[%clk 0:01:22]} 38. Bc2 {[%clk 0:00:48]}  Nd5+ {[%clk 0:01:22]} 39. Kc4 {[%clk 0:00:49]}  Ne3+ {[%clk 0:01:20]} 0-1


[Site "https://www.chess.com"]

[Event "Titled Tuesday Blitz June 29 2021"]
[White "amatatanav"]
[Black "mr65"]
[WhiteElo "2444"]
[BlackElo "2192"]
[Result "1-0"]
[Round "11"]
[TimeControl "180+1"]
[Date "2021.06.29"]
[WhiteClock "0:00:07"]
[BlackClock "0:00:41"]

1. e4 {[%clk 0:03:00]}  e5 {[%clk 0:02:57]} 2. Bc4 {[%clk 0:03:00]}  Nc6 {[%clk 0:02:52]} 3. Nc3 {[%clk 0:02:59]}  Nf6 {[%clk 0:02:49]} 4. d3 {[%clk 0:02:59]}  Bb4 {[%clk 0:02:47]} 5. Ne2 {[%clk 0:02:58]}  d5 {[%clk 0:02:42]} 6. exd5 {[%clk 0:02:59]}  Nxd5 {[%clk 0:02:41]} 7. O-O {[%clk 0:02:59]}  Be6 {[%clk 0:02:33]} 8. Bb5 {[%clk 0:02:35]}  Qd7 {[%clk 0:02:24]} 9. d4 {[%clk 0:01:49]}  Bxc3 {[%clk 0:02:06]} 10. bxc3 {[%clk 0:01:46]}  a6 {[%clk 0:02:02]} 11. Bxc6 {[%clk 0:01:38]}  Qxc6 {[%clk 0:02:00]} 12. dxe5 {[%clk 0:00:43]}  Nxc3 {[%clk 0:01:56]} 13. Nxc3 {[%clk 0:00:43]}  Qxc3 {[%clk 0:01:55]} 14. Bf4 {[%clk 0:00:20]}  Rd8 {[%clk 0:01:46]} 15. Qe2 {[%clk 0:00:19]}  Bc4 {[%clk 0:01:41]} 16. Qg4 {[%clk 0:00:17]}  Bxf1 {[%clk 0:01:38]} 17. Qxg7 {[%clk 0:00:17]}  Qxa1 {[%clk 0:01:35]} 18. Qxh8+ {[%clk 0:00:09]}  Kd7 {[%clk 0:01:32]} 19. e6+ {[%clk 0:00:09]}  Kc8 {[%clk 0:01:22]} 20. Qxa1 {[%clk 0:00:10]}  Bc4 {[%clk 0:01:13]} 21. e7 {[%clk 0:00:09]}  Re8 {[%clk 0:01:12]} 22. Bg5 {[%clk 0:00:09]}  Be6 {[%clk 0:01:07]} 23. Qd1 {[%clk 0:00:09]}  Bd7 {[%clk 0:01:04]} 24. h3 {[%clk 0:00:09]}  h6 {[%clk 0:01:03]} 25. Bf6 {[%clk 0:00:09]}  Rg8 {[%clk 0:01:01]} 26. Kh2 {[%clk 0:00:08]}  b6 {[%clk 0:00:58]} 27. Qf3 {[%clk 0:00:08]}  Kb8 {[%clk 0:00:54]} 28. Qd5 {[%clk 0:00:09]}  Be8 {[%clk 0:00:49]} 29. Qd8+ {[%clk 0:00:09]}  Kb7 {[%clk 0:00:49]} 30. Be5 {[%clk 0:00:09]}  Kc6 {[%clk 0:00:44]} 31. Qxc7+ {[%clk 0:00:08]}  Kb5 {[%clk 0:00:44]} 32. a4+ {[%clk 0:00:07]}  Kxa4 {[%clk 0:00:42]} 33. Qc4+ {[%clk 0:00:07]}  Ka3 {[%clk 0:00:41]} 34. Qb3# {[%clk 0:00:07]} 1-0


[Site "https://www.chess.com"]

[Event "Titled Tuesday Blitz June 29 2021"]
[White "ellennilssen"]
[Black "Kcnock2004"]
[WhiteElo "2287"]
[BlackElo "2458"]
[Result "0-1"]
[Round "11"]
[TimeControl "180+1"]
[Date "2021.06.29"]
[WhiteClock "0:00:16"]
[BlackClock "0:00:42"]

1. Nf3 {[%clk 0:03:00]}  Nf6 {[%clk 0:03:00]} 2. c4 {[%clk 0:03:00]}  e6 {[%clk 0:03:00]} 3. d4 {[%clk 0:03:00]}  c5 {[%clk 0:03:00]} 4. d5 {[%clk 0:02:59]}  exd5 {[%clk 0:03:01]} 5. cxd5 {[%clk 0:03:00]}  d6 {[%clk 0:03:02]} 6. Nc3 {[%clk 0:03:00]}  g6 {[%clk 0:03:03]} 7. e4 {[%clk 0:03:00]}  Bg7 {[%clk 0:03:03]} 8. h3 {[%clk 0:03:01]}  O-O {[%clk 0:03:04]} 9. Bd3 {[%clk 0:03:00]}  Re8 {[%clk 0:03:04]} 10. O-O {[%clk 0:02:59]}  Nbd7 {[%clk 0:03:05]} 11. Bg5 {[%clk 0:02:57]}  Ne5 {[%clk 0:03:05]} 12. Nxe5 {[%clk 0:02:50]}  Rxe5 {[%clk 0:03:05]} 13. Bf4 {[%clk 0:02:47]}  Nh5 {[%clk 0:03:06]} 14. Bxe5 {[%clk 0:02:41]}  Bxe5 {[%clk 0:03:07]} 15. Be2 {[%clk 0:02:27]}  Nf4 {[%clk 0:03:01]} 16. Bg4 {[%clk 0:02:25]}  Qg5 {[%clk 0:02:56]} 17. Qf3 {[%clk 0:02:01]}  f5 {[%clk 0:02:52]} 18. exf5 {[%clk 0:01:28]}  gxf5 {[%clk 0:02:52]} 19. g3 {[%clk 0:01:23]}  fxg4 {[%clk 0:02:48]} 20. gxf4 {[%clk 0:01:22]}  gxf3+ {[%clk 0:01:47]} 21. fxg5 {[%clk 0:01:22]}  Bxh3 {[%clk 0:01:47]} 22. Rfe1 {[%clk 0:01:21]}  Kf7 {[%clk 0:01:39]} 23. Rxe5 {[%clk 0:00:59]}  dxe5 {[%clk 0:01:40]} 24. Re1 {[%clk 0:00:59]}  Re8 {[%clk 0:01:33]} 25. Ne4 {[%clk 0:00:58]}  Rg8 {[%clk 0:01:24]} 26. Kh2 {[%clk 0:00:54]}  Bg2 {[%clk 0:00:58]} 27. Nd6+ {[%clk 0:00:24]}  Ke7 {[%clk 0:00:55]} 28. Nxb7 {[%clk 0:00:21]}  Rxg5 {[%clk 0:00:53]} 29. Nxc5 {[%clk 0:00:21]}  h5 {[%clk 0:00:43]} 30. Nd3 {[%clk 0:00:20]}  Kd6 {[%clk 0:00:43]} 31. Nb4 {[%clk 0:00:19]}  Rg4 {[%clk 0:00:42]} 32. Rc1 {[%clk 0:00:18]}  Rh4+ {[%clk 0:00:42]} 33. Kg3 {[%clk 0:00:16]}  Rh3# {[%clk 0:00:42]} 0-1


[Site "https://www.chess.com"]

[Event "Titled Tuesday Blitz June 29 2021"]
[White "erichansen"]
[Black "AlexOstrovskiy"]
[WhiteElo "2926"]
[BlackElo "2801"]
[Result "0-1"]
[Round "11"]
[TimeControl "180+1"]
[Date "2021.06.29"]
[WhiteClock "0:00:03"]
[BlackClock "0:00:11"]

1. b3 {[%clk 0:03:00]}  d5 {[%clk 0:02:55]} 2. Bb2 {[%clk 0:03:00]}  Bf5 {[%clk 0:02:56]} 3. Nf3 {[%clk 0:02:59]}  e6 {[%clk 0:02:56]} 4. e3 {[%clk 0:02:59]}  Nf6 {[%clk 0:02:56]} 5. Nh4 {[%clk 0:02:59]}  Bg4 {[%clk 0:02:54]} 6. Be2 {[%clk 0:02:57]}  Bxe2 {[%clk 0:02:53]} 7. Qxe2 {[%clk 0:02:58]}  Be7 {[%clk 0:02:51]} 8. g4 {[%clk 0:02:53]}  h6 {[%clk 0:02:43]} 9. Rg1 {[%clk 0:02:42]}  c6 {[%clk 0:02:37]} 10. Nf3 {[%clk 0:02:40]}  Nbd7 {[%clk 0:02:15]} 11. h4 {[%clk 0:02:39]}  Qa5 {[%clk 0:02:05]} 12. g5 {[%clk 0:02:29]}  hxg5 {[%clk 0:02:06]} 13. hxg5 {[%clk 0:02:29]}  Ne4 {[%clk 0:02:03]} 14. Nc3 {[%clk 0:02:22]}  O-O-O {[%clk 0:01:54]} 15. g6 {[%clk 0:01:49]}  f5 {[%clk 0:01:29]} 16. Nd4 {[%clk 0:01:38]}  Bf6 {[%clk 0:01:11]} 17. O-O-O {[%clk 0:01:29]}  Nxc3 {[%clk 0:01:11]} 18. dxc3 {[%clk 0:01:14]}  Qxa2 {[%clk 0:01:10]} 19. Nxe6 {[%clk 0:01:11]}  Rde8 {[%clk 0:01:09]} 20. Nf4 {[%clk 0:01:05]}  Nc5 {[%clk 0:01:06]} 21. Rh1 {[%clk 0:00:37]}  Rhf8 {[%clk 0:00:53]} 22. Rd4 {[%clk 0:00:28]}  Bxd4 {[%clk 0:00:47]} 23. cxd4 {[%clk 0:00:28]}  Ne6 {[%clk 0:00:46]} 24. Nd3 {[%clk 0:00:25]}  Qa5 {[%clk 0:00:41]} 25. Rh7 {[%clk 0:00:22]}  f4 {[%clk 0:00:39]} 26. Kb1 {[%clk 0:00:17]}  fxe3 {[%clk 0:00:39]} 27. Qxe3 {[%clk 0:00:10]}  Nf4 {[%clk 0:00:25]} 28. Ne5 {[%clk 0:00:08]}  Ne6 {[%clk 0:00:23]} 29. Bc3 {[%clk 0:00:06]}  Qd8 {[%clk 0:00:20]} 30. Kb2 {[%clk 0:00:03]}  Qf6 {[%clk 0:00:18]} 31. Rh2 {[%clk 0:00:02]}  Qf4 {[%clk 0:00:17]} 32. Qh3 {[%clk 0:00:03]}  Kc7 {[%clk 0:00:15]} 33. Rg2 {[%clk 0:00:01]}  Qf5 {[%clk 0:00:12]} 34. Qe3 {[%clk 0:00:01]}  Nf4 {[%clk 0:00:12]} 35. Rg3 {[%clk 0:00:01]}  Re6 {[%clk 0:00:11]} 36. Qd2 {[%clk 0:00:01]}  Nxg6 {[%clk 0:00:09]} 37. Rf3 {[%clk 0:00:01]}  Qh5 {[%clk 0:00:08]} 38. Rg3 {[%clk 0:00:01]}  Nxe5 {[%clk 0:00:08]} 39. dxe5 {[%clk 0:00:02]}  Qf7 {[%clk 0:00:08]} 40. Qd4 {[%clk 0:00:03]}  b6 {[%clk 0:00:08]} 41. Qa4 {[%clk 0:00:03]}  Kb7 {[%clk 0:00:08]} 42. f4 {[%clk 0:00:03]}  g6 {[%clk 0:00:08]} 43. Rg4 {[%clk 0:00:03]}  Qe7 {[%clk 0:00:08]} 44. Qa3 {[%clk 0:00:03]}  Qxa3+ {[%clk 0:00:08]} 45. Kxa3 {[%clk 0:00:04]}  c5 {[%clk 0:00:08]} 46. Kb2 {[%clk 0:00:04]}  d4 {[%clk 0:00:09]} 47. Bd2 {[%clk 0:00:05]}  Kc6 {[%clk 0:00:10]} 48. c4 {[%clk 0:00:05]}  dxc3+ {[%clk 0:00:10]} 49. Kxc3 {[%clk 0:00:05]}  Kd5 {[%clk 0:00:10]} 50. Kd3 {[%clk 0:00:06]}  b5 {[%clk 0:00:11]} 51. Be3 {[%clk 0:00:06]}  c4+ {[%clk 0:00:11]} 52. bxc4+ {[%clk 0:00:07]}  bxc4+ {[%clk 0:00:12]} 53. Kc2 {[%clk 0:00:07]}  Rf7 {[%clk 0:00:12]} 54. Bc1 {[%clk 0:00:07]}  Ke4 {[%clk 0:00:13]} 55. Rg1 {[%clk 0:00:07]}  Kd5 {[%clk 0:00:12]} 56. Rd1+ {[%clk 0:00:07]}  Ke4 {[%clk 0:00:12]} 57. Kc3 {[%clk 0:00:08]}  Rc7 {[%clk 0:00:11]} 58. Rd4+ {[%clk 0:00:05]}  Kf5 {[%clk 0:00:11]} 59. Rd8 {[%clk 0:00:06]}  Ra6 {[%clk 0:00:09]} 60. Kd4 {[%clk 0:00:04]}  Ra1 {[%clk 0:00:09]} 61. Rf8+ {[%clk 0:00:03]}  Kg4 {[%clk 0:00:09]} 62. Be3 {[%clk 0:00:02]}  Rd1+ {[%clk 0:00:09]} 63. Ke4 {[%clk 0:00:02]}  c3 {[%clk 0:00:10]} 64. Rg8 {[%clk 0:00:03]}  Rc6 {[%clk 0:00:09]} 65. f5 {[%clk 0:00:01]}  c2 {[%clk 0:00:09]} 66. Rxg6+ {[%clk 0:00:01]}  Rxg6 {[%clk 0:00:09]} 67. fxg6 {[%clk 0:00:02]}  Re1 {[%clk 0:00:09]} 68. g7 {[%clk 0:00:02]}  Rxe3+ {[%clk 0:00:10]} 69. Kxe3 {[%clk 0:00:02]}  c1=Q+ {[%clk 0:00:10]} 70. Ke4 {[%clk 0:00:03]}  Qg5 {[%clk 0:00:11]} 71. e6 {[%clk 0:00:03]}  Qxg7 {[%clk 0:00:11]} 0-1


[Site "https://www.chess.com"]

[Event "Titled Tuesday Blitz June 29 2021"]
[White "esrosenberg"]
[Black "ShahMatKanal"]
[WhiteElo "2380"]
[BlackElo "2519"]
[Result "0-1"]
[Round "11"]
[TimeControl "180+1"]
[Date "2021.06.29"]
[WhiteClock "0:00:04"]
[BlackClock "0:00:10"]

1. Nf3 {[%clk 0:03:00]}  Nf6 {[%clk 0:02:59]} 2. c4 {[%clk 0:03:00]}  c5 {[%clk 0:02:59]} 3. d4 {[%clk 0:03:00]}  d5 {[%clk 0:02:58]} 4. cxd5 {[%clk 0:02:56]}  cxd4 {[%clk 0:02:54]} 5. Qa4+ {[%clk 0:02:49]}  Qd7 {[%clk 0:02:44]} 6. Qxd4 {[%clk 0:02:35]}  Qxd5 {[%clk 0:02:39]} 7. Nc3 {[%clk 0:02:34]}  Qxd4 {[%clk 0:02:38]} 8. Nxd4 {[%clk 0:02:35]}  a6 {[%clk 0:02:39]} 9. e4 {[%clk 0:02:28]}  e5 {[%clk 0:02:36]} 10. Nf3 {[%clk 0:02:26]}  Nc6 {[%clk 0:02:36]} 11. Bc4 {[%clk 0:02:14]}  Bb4 {[%clk 0:02:34]} 12. O-O {[%clk 0:02:13]}  O-O {[%clk 0:02:31]} 13. Bd5 {[%clk 0:02:06]}  Bxc3 {[%clk 0:02:13]} 14. bxc3 {[%clk 0:02:05]}  h6 {[%clk 0:01:33]} 15. Rb1 {[%clk 0:02:00]}  Nxd5 {[%clk 0:00:58]} 16. exd5 {[%clk 0:01:59]}  Na5 {[%clk 0:00:59]} 17. Nxe5 {[%clk 0:01:55]}  Bf5 {[%clk 0:00:50]} 18. Rb4 {[%clk 0:01:46]}  Rac8 {[%clk 0:00:46]} 19. Bd2 {[%clk 0:01:18]}  Rc5 {[%clk 0:00:43]} 20. Rd4 {[%clk 0:01:04]}  Rd8 {[%clk 0:00:38]} 21. c4 {[%clk 0:00:43]}  f6 {[%clk 0:00:37]} 22. Nf3 {[%clk 0:00:19]}  Nxc4 {[%clk 0:00:31]} 23. Rc1 {[%clk 0:00:16]}  b5 {[%clk 0:00:32]} 24. a4 {[%clk 0:00:14]}  Rcxd5 {[%clk 0:00:31]} 25. Rxd5 {[%clk 0:00:13]}  Rxd5 {[%clk 0:00:32]} 26. Be3 {[%clk 0:00:11]}  Nxe3 {[%clk 0:00:30]} 27. fxe3 {[%clk 0:00:12]}  bxa4 {[%clk 0:00:31]} 28. Nd4 {[%clk 0:00:12]}  Bd3 {[%clk 0:00:28]} 29. Ra1 {[%clk 0:00:12]}  Bb5 {[%clk 0:00:26]} 30. Kf2 {[%clk 0:00:10]}  Rc5 {[%clk 0:00:25]} 31. Ne6 {[%clk 0:00:08]}  Rc2+ {[%clk 0:00:24]} 32. Kf3 {[%clk 0:00:08]}  Bc6+ {[%clk 0:00:24]} 33. Kf4 {[%clk 0:00:08]}  Rxg2 {[%clk 0:00:21]} 34. Nd4 {[%clk 0:00:09]}  Bb5 {[%clk 0:00:20]} 35. Kf3 {[%clk 0:00:08]}  Rxh2 {[%clk 0:00:20]} 36. Nf5 {[%clk 0:00:07]}  g6 {[%clk 0:00:18]} 37. Ne7+ {[%clk 0:00:06]}  Kf7 {[%clk 0:00:18]} 38. Nc8 {[%clk 0:00:06]}  h5 {[%clk 0:00:14]} 39. Nd6+ {[%clk 0:00:06]}  Ke6 {[%clk 0:00:15]} 40. Ne8 {[%clk 0:00:05]}  h4 {[%clk 0:00:14]} 41. Nc7+ {[%clk 0:00:05]}  Ke5 {[%clk 0:00:14]} 42. e4 {[%clk 0:00:05]}  g5 {[%clk 0:00:11]} 43. Kg4 {[%clk 0:00:04]}  Be2# {[%clk 0:00:10]} 0-1


[Site "https://www.chess.com"]